bitfinex/quotes_SOLUSD_20241205
["timestamp","ask_amount","ask_price","bid_price","bid_amount"]
[1733410191103,137.38428601,240.84,240.78,19.87525635]
[1733410191306,137.38428601,240.86,240.81,19.87525635]
[1733410191717,157.25954236,240.86,240.79,19.87525635]
[1733410191900,157.25954236,240.86,240.81,20.0]
[1733410192220,137.38428601,240.85,240.8,19.87525635]
[1733410192529,157.25954236,240.86,240.79,19.87525635]
[1733410193026,19.87525635,240.83,240.76,39.87525635]
[1733410193326,19.87525635,240.84,240.77,39.87525635]
[1733410193619,137.38428601,240.83,240.81,20.0]
[1733410194113,157.25954236,240.83,240.81,20.0]
[1733410194298,157.25954236,240.83,240.79,20.0]
[1733410194819,157.25954236,240.8,240.72,20.0]
[1733410195027,19.87525635,240.78,240.73,20.0]
[1733410195903,19.87525635,240.84,240.77,19.87525635]
[1733410196112,19.87525635,240.82,240.74,19.87525635]
[1733410196296,19.87525635,240.81,240.73,19.87525635]
[1733410196495,19.87525635,240.81,240.76,20.0]
[1733410196702,19.87525635,240.83,240.78,20.0]
[1733410196926,19.87525635,240.85,240.8,20.0]
[1733410197134,19.87525635,240.84,240.8,20.0]
[1733410197309,19.87525635,240.83,240.8,20.0]
[1733410197508,19.87525635,240.87,240.79,19.87525635]
[1733410197724,19.87525635,240.88,240.83,20.0]
[1733410197926,19.87525635,240.86,240.83,20.0]
[1733410198107,19.87525635,240.84,240.83,20.0]
[1733410198307,19.87525635,240.84,240.77,20.0]
[1733410198625,19.87525635,240.78,240.69,6.0827]
[1733410198835,19.87525635,240.76,240.69,6.0827]
[1733410199235,19.87525635,240.78,240.7,19.87525635]
[1733410200120,12.42464711,240.77,240.72,20.0]
[1733410200319,12.42464711,240.77,240.69,6.0827]
[1733410201132,137.38428601,240.82,240.69,6.0827]
[1733410201133,12.42464711,240.82,240.75,12.42464711]
[1733410201328,12.42464711,240.84,240.75,12.42464711]
[1733410201840,12.42464711,240.83,240.8,20.0]
[1733410202132,12.42464711,240.81,240.8,20.0]
[1733410202429,12.42464711,240.81,240.76,20.0]
[1733410203010,12.42464711,240.83,240.76,20.0]
[1733410203220,23.776884,240.82,240.8,20.0]
[1733410203418,12.42464711,240.85,240.8,20.0]
[1733410204639,12.42464711,240.91,240.84,20.0]
[1733410204805,12.42464711,240.93,240.88,20.0]
[1733410205528,137.38428601,240.92,240.88,20.0]
[1733410205725,137.38428601,240.92,240.86,20.0]
[1733410206330,137.38428601,240.92,240.88,20.0]
[1733410207409,12.42464711,240.91,240.86,20.0]
[1733410207628,12.42464711,240.89,240.86,20.0]
[1733410207914,12.42464711,240.89,240.84,20.0]
[1733410208136,23.776884,240.88,240.82,19.85968432]
[1733410208315,137.38428601,240.99,240.86,19.85968432]
[1733410208631,19.85968432,240.91,240.87,20.0]
[1733410208841,19.85968432,240.88,240.85,20.0]
[1733410209023,19.85968432,240.86,240.85,20.0]
[1733410209207,19.85968432,240.86,240.81,20.0]
[1733410209411,19.85968432,240.84,240.79,1.6659]
[1733410209619,19.85968432,240.84,240.78,6.3674]
[1733410210336,19.85968432,240.82,240.78,6.3674]
[1733410210511,19.85968432,240.82,240.74,19.85968432]
[1733410210835,19.85968432,240.82,240.75,0.12549]
[1733410211046,19.85968432,240.82,240.76,20.0]
[1733410211336,19.85968432,240.85,240.81,20.0]
[1733410211520,19.85968432,240.93,240.87,20.0]
[1733410211839,19.85968432,240.93,240.89,20.0]
[1733410212060,19.85968432,240.95,240.89,20.0]
[1733410212214,137.8,240.92,240.89,20.0]
[1733410212540,19.85968432,240.91,240.84,20.0]
[1733410212846,19.85968432,240.91,240.86,20.0]
[1733410213215,19.85968432,240.89,240.86,20.0]
[1733410213413,19.85968432,240.89,240.81,19.85968432]
[1733410213730,19.85968432,240.85,240.78,6.4186]
[1733410213940,23.776884,240.87,240.8,19.85968432]
[1733410214946,19.85968432,240.94,240.86,19.85968432]
[1733410215742,19.85968432,240.92,240.84,19.85968432]
[1733410216114,19.85968432,240.9,240.82,19.85968432]
[1733410216337,157.65968432,240.92,240.84,19.85968432]
[1733410216639,19.85968432,240.9,240.82,19.85968432]
[1733410217021,19.85968432,240.9,240.81,20.0]
[1733410217223,23.776884,240.9,240.82,19.85968432]
[1733410217430,43.63656832,240.9,240.82,19.85968432]
[1733410217745,43.63656832,240.9,240.81,20.0]
[1733410218037,19.85968432,240.88,240.81,20.0]
[1733410218349,19.85968432,240.89,240.83,20.0]
[1733410218646,23.776884,240.88,240.8,19.85968432]
[1733410218839,19.85968432,240.87,240.8,19.85968432]
[1733410219141,23.776884,240.86,240.8,19.85968432]
[1733410219443,23.776884,240.86,240.78,26.27828432]
[1733410219762,19.85968432,240.85,240.78,26.27828432]
[1733410220047,137.8,240.94,240.79,0.12549]
[1733410220218,137.8,240.89,240.81,19.85968432]
[1733410220418,137.8,240.89,240.82,0.12549]
[1733410220633,137.8,240.89,240.82,23.902374]
[1733410221249,137.8,240.89,240.83,0.12549]
[1733410221540,19.85968432,240.86,240.81,20.0]
[1733410221735,19.85968432,240.84,240.81,20.0]
[1733410222247,19.85968432,240.84,240.79,20.0]
[1733410222850,19.85968432,240.82,240.76,0.12549]
[1733410223137,1.648,240.88,240.73,19.85968432]
[1733410223339,137.8,240.87,240.78,19.85968432]
[1733410223532,157.65968432,240.87,240.79,0.12549]
[1733410223918,137.8,240.97,240.86,19.85968432]
[1733410224226,19.85968432,240.94,240.86,19.85968432]
[1733410224426,19.85968432,240.94,240.89,20.0]
[1733410224614,19.85968432,240.94,240.9,23.776884]
[1733410225045,19.85968432,240.96,240.9,23.776884]
[1733410225424,137.8,240.98,240.9,23.776884]
[1733410225425,19.85968432,240.95,240.9,23.776884]
[1733410226549,19.85968432,240.99,240.94,23.776884]
[1733410226748,137.8,241.0,240.94,23.776884]
[1733410228048,12.40049896,241.01,240.95,0.25098]
[1733410229259,12.40049896,240.99,240.95,0.25098]
[1733410229423,12.40049896,240.99,240.95,0.12549]
[1733410229624,12.40049896,241.01,240.95,0.12549]
[1733410230035,12.40049896,241.01,240.95,0.25098]
[1733410230948,12.40049896,241.03,240.97,0.25098]
[1733410231124,12.40049896,241.05,240.99,0.25098]
[1733410231744,137.8,241.07,240.99,12.65147896]
[1733410232150,137.8,241.12,241.03,0.12549]
[1733410232352,137.8,241.13,241.05,12.52598896]
[1733410232569,137.8,241.16,241.09,0.12549]
[1733410232854,12.40049896,241.14,241.09,0.12549]
[1733410233226,12.40049896,241.14,241.08,20.0]
[1733410233447,12.40049896,241.12,241.06,20.0]
[1733410233949,12.40049896,241.1,241.06,20.0]
[1733410234854,4.99656644,241.12,241.07,44.32866296]
[1733410235053,0.4739681,241.2,241.14,20.0]
[1733410235255,0.4739681,241.2,241.16,20.0]
[1733410236150,12.40049896,241.19,241.12,0.12549]
[1733410236344,12.40049896,241.19,241.14,20.0]
[1733410237453,137.8,241.18,241.07,8.52232306]
[1733410237631,12.40049896,241.14,241.07,20.30079896]
[1733410238163,12.40049896,241.11,241.08,0.12549]
[1733410238360,12.40049896,241.11,241.07,7.9003]
[1733410238675,12.40049896,241.09,241.01,20.55779896]
[1733410238968,12.40049896,241.11,241.05,0.12549]
[1733410239264,12.40049896,241.11,241.07,0.12549]
[1733410239451,12.40049896,241.11,241.07,20.12549]
[1733410239966,12.40049896,241.13,241.07,20.12549]
[1733410240261,12.40049896,241.11,241.07,20.12549]
[1733410241342,12.40049896,241.11,241.07,0.25098]
[1733410241768,12.40049896,241.1,241.07,0.12549]
[1733410242266,12.40049896,241.08,241.05,23.902374]
[1733410242577,12.40049896,241.08,241.07,20.0]
[1733410242737,12.40049896,241.09,241.08,20.0]
[1733410243065,12.40049896,241.12,241.09,0.12549]
[1733410243274,12.40049896,241.12,241.09,0.25098]
[1733410244583,12.40049896,241.11,241.09,0.12549]
[1733410244765,12.40049896,241.1,241.09,0.12549]
[1733410244941,12.40049896,241.1,241.04,20.0]
[1733410245142,12.40049896,241.07,241.04,20.0]
[1733410245342,12.40049896,241.05,241.01,6.5312]
[1733410245570,6.03320104,241.1,241.02,0.12549]
[1733410245771,12.40049896,241.06,241.01,6.5312]
[1733410245969,6.03320104,241.1,241.01,6.5312]
[1733410246173,12.40049896,241.06,241.02,0.12549]
[1733410246559,12.40049896,241.1,241.05,0.12549]
[1733410246869,12.40049896,241.13,241.09,0.12549]
[1733410247085,12.40049896,241.12,241.09,0.25098]
[1733410247451,0.4739681,241.2,241.13,0.12549]
[1733410247763,12.40049896,241.16,241.13,0.12549]
[1733410249882,12.40049896,241.15,241.13,0.12549]
[1733410250479,12.40049896,241.14,241.12,20.0]
[1733410250768,12.87446706,241.2,241.12,20.0]
[1733410250769,12.40049896,241.13,241.12,20.0]
[1733410250981,12.40049896,241.13,241.09,1.515]
[1733410251150,12.40049896,241.12,241.07,0.12549]
[1733410251353,12.40049896,241.13,241.1,24.027864]
[1733410251554,12.40049896,241.13,241.12,20.0]
[1733410252071,12.40049896,241.13,241.1,20.0]
[1733410252378,12.40049896,241.13,241.11,0.12549]
[1733410252879,12.40049896,241.12,241.11,0.12549]
[1733410253349,12.40049896,241.13,241.11,0.12549]
[1733410253555,12.40049896,241.14,241.11,0.12549]
[1733410253750,12.40049896,241.13,241.11,0.12549]
[1733410254678,12.40049896,241.13,241.1,20.0]
[1733410254880,12.40049896,241.11,241.06,20.0]
[1733410255183,137.8,241.16,241.05,32.52598896]
[1733410255359,0.4739681,241.2,241.05,32.52598896]
[1733410255360,12.40049896,241.12,241.05,32.52598896]
[1733410255559,12.40049896,241.11,241.05,20.12549]
[1733410255781,12.40049896,241.11,241.07,0.12549]
[1733410256166,143.84362459,241.15,241.07,0.12549]
[1733410256365,12.40049896,241.11,241.07,20.12549]
[1733410257063,12.40049896,241.11,241.06,20.25098]
[1733410258980,12.40049896,241.09,241.04,20.12549]
[1733410259183,12.40049896,241.09,241.05,20.0]
[1733410259772,137.8,241.15,241.05,20.0]
[1733410260080,12.40049896,241.09,241.07,20.0]
[1733410260276,12.40049896,241.08,241.07,20.0]
[1733410260480,12.40049896,241.11,241.06,20.0]
[1733410260866,12.40049896,241.1,241.06,20.0]
[1733410261386,12.40049896,241.08,241.05,20.0]
[1733410261591,1.6057,241.17,241.01,18.93169896]
[1733410261592,12.40049896,241.06,241.01,6.5312]
[1733410261968,12.40049896,241.06,241.02,0.25098]
[1733410262282,137.8,241.08,240.97,12.40049896]
[1733410262477,12.40049896,241.03,240.95,12.40049896]
[1733410262678,12.40049896,241.02,240.95,12.40049896]
[1733410262884,12.40049896,241.04,240.97,12.40049896]
[1733410263085,137.8,241.06,241.0,12.40049896]
[1733410263269,137.8,241.15,241.02,0.12549]
[1733410263470,12.40049896,241.08,241.02,0.12549]
[1733410263668,12.40049896,241.07,241.02,0.12549]
[1733410263969,12.40049896,241.07,241.04,20.0]
[1733410264170,12.40049896,241.09,241.04,20.0]
[1733410264374,137.8,241.16,241.06,12.65147896]
[1733410264618,137.8,241.16,241.05,32.40049896]
[1733410264767,12.40049896,241.11,241.07,20.0]
[1733410264962,12.40049896,241.14,241.11,20.0]
[1733410265167,12.40049896,241.14,241.1,20.0]
[1733410265588,12.40049896,241.13,241.1,20.0]
[1733410265862,12.40049896,241.11,241.06,0.12549]
[1733410266064,12.40049896,241.07,241.05,20.0]
[1733410266262,12.40049896,241.06,241.01,8.18]
[1733410266477,12.40049896,241.05,241.01,6.5878]
[1733410266692,12.40049896,241.03,240.96,12.40049896]
[1733410266991,12.40049896,240.98,240.89,6.4764]
[1733410267197,5.90588135,241.03,240.89,6.4764]
[1733410267198,12.40049896,240.93,240.89,6.4764]
[1733410267506,12.40049896,240.94,240.89,6.4764]
[1733410267678,12.40049896,240.95,240.89,6.4764]
[1733410267993,12.40049896,240.93,240.9,0.12549]
[1733410268294,12.40049896,240.93,240.89,6.4764]
[1733410268490,12.40049896,240.94,240.92,20.0]
[1733410268674,12.40049896,240.95,240.92,20.0]
[1733410268986,12.40049896,240.94,240.92,20.0]
[1733410269189,12.40049896,240.93,240.89,6.4764]
[1733410269394,4.98273691,241.05,240.89,6.4764]
[1733410269395,12.40049896,240.9,240.89,6.4764]
[1733410269566,12.40049896,240.9,240.84,6.0054]
[1733410269986,12.40049896,240.86,240.78,6.0054]
[1733410270290,12.40049896,240.81,240.79,0.12549]
[1733410270474,12.40049896,240.82,240.79,0.12549]
[1733410270669,12.40049896,240.83,240.79,0.12549]
[1733410271069,12.40049896,240.81,240.79,0.12549]
[1733410271288,12.40049896,240.8,240.78,6.0054]
[1733410271493,12.40049896,240.82,240.78,6.0054]
[1733410271683,12.40049896,240.8,240.79,0.12549]
[1733410272185,137.8,240.92,240.79,12.52598896]
[1733410272500,12.40049896,240.89,240.83,0.12549]
[1733410272789,12.40049896,240.89,240.87,0.25098]
[1733410273201,12.40049896,240.89,240.85,0.12549]
[1733410273398,12.40049896,240.87,240.85,0.25098]
[1733410273570,12.40049896,240.88,240.85,0.25098]
[1733410273775,12.40049896,240.88,240.85,0.12549]
[1733410273991,12.40049896,240.89,240.85,0.12549]
[1733410274366,137.8,240.93,240.85,0.12549]
[1733410274367,12.40049896,240.9,240.85,0.12549]
[1733410274574,12.40049896,240.92,240.88,0.12549]
[1733410275570,12.40049896,240.92,240.66,81.5]
[1733410275571,12.40049896,240.9,240.86,0.12549]
[1733410275999,12.40049896,240.9,240.86,0.25098]
[1733410276795,12.40049896,240.87,240.82,20.0]
[1733410276982,12.40049896,240.87,240.83,0.12549]
[1733410277168,18.29533031,240.87,240.79,12.40049896]
[1733410277370,12.40049896,240.85,240.8,0.12549]
[1733410277801,12.40049896,240.86,240.8,0.12549]
[1733410277983,12.40049896,240.86,240.79,0.12549]
[1733410278184,137.8,240.91,240.82,0.12549]
[1733410278371,12.40049896,240.83,240.79,0.12549]
[1733410278579,12.40049896,240.82,240.78,6.0054]
[1733410278901,5.74737499,240.9,240.74,22.78489896]
[1733410278902,12.40049896,240.8,240.74,10.3844]
[1733410279268,12.40049896,240.81,240.77,0.12549]
[1733410279472,12.40049896,240.78,240.73,6.6235]
[1733410279696,12.40049896,240.74,240.68,1.5609]
[1733410279898,12.40049896,240.73,240.69,0.12549]
[1733410280196,12.40049896,240.73,240.68,1.5609]
[1733410280400,12.40049896,240.71,240.68,1.5609]
[1733410280699,12.40049896,240.69,240.67,6.6337]
[1733410280998,12.40049896,240.68,240.61,6.6656]
[1733410281178,12.40049896,240.62,240.56,6.6656]
[1733410281376,6.17658444,240.61,240.57,16.624737]
[1733410281585,143.97658444,240.61,240.5,6.6656]
[1733410281794,12.40049896,240.52,240.44,29.46359896]
[1733410282115,20.0,240.56,240.39,12.03172962]
[1733410282312,137.8,240.52,240.37,0.0416]
[1733410282606,19.92612062,240.38,240.37,0.0416]
[1733410283175,39.85224124,240.38,240.37,0.0416]
[1733410283600,39.85224124,240.38,240.36,0.4739681]
[1733410283910,20.0,240.34,240.18,6.2747]
[1733410284123,19.92612062,240.25,240.18,6.2747]
[1733410284414,19.92612062,240.2,240.12,10.8850681]
[1733410284716,19.92612062,240.18,240.12,0.4739681]
[1733410284888,19.92612062,240.16,240.12,0.4739681]
[1733410285080,19.92612062,240.14,240.12,0.4739681]
[1733410285510,19.92612062,240.16,240.13,20.12549]
[1733410285689,19.92612062,240.16,240.13,20.0]
[1733410286006,20.0,240.32,240.13,19.92612062]
[1733410286311,19.92612062,240.26,240.19,19.92612062]
[1733410286490,19.92612062,240.26,240.17,19.92612062]
[1733410286811,19.92612062,240.28,240.21,19.92612062]
[1733410286977,19.92612062,240.3,240.24,0.12549]
[1733410287182,19.92612062,240.32,240.29,0.12549]
[1733410287394,19.92612062,240.38,240.33,0.12549]
[1733410287583,19.92612062,240.38,240.36,20.0]
[1733410288007,19.92612062,240.37,240.24,20.12549]
[1733410288221,19.92612062,240.25,240.24,20.0]
[1733410288386,19.92612062,240.48,240.25,0.25098]
[1733410288387,137.8,240.47,240.25,0.25098]
[1733410288718,19.92612062,240.27,240.25,0.12549]
[1733410288883,19.92612062,240.27,240.19,0.12549]
[1733410289084,19.92612062,240.2,240.11,26.57172062]
[1733410289382,19.92612062,240.13,240.05,19.92612062]
[1733410289581,11.36565407,240.13,240.05,19.92612062]
[1733410289783,11.36565407,240.13,240.04,0.62462308]
[1733410290008,11.36565407,240.13,240.04,20.5507437]
[1733410290219,137.8,240.19,240.04,20.5507437]
[1733410290220,137.8,240.31,240.13,0.12549]
[1733410290384,6.4452,240.41,240.19,0.12549]
[1733410290385,19.92612062,240.26,240.19,0.12549]
[1733410290716,19.92612062,240.28,240.2,19.92612062]
[1733410291016,19.92612062,240.3,240.26,0.25098]
[1733410291185,137.8,240.41,240.33,20.0]
[1733410291384,19.92612062,240.39,240.35,20.0]
[1733410291581,19.92612062,240.41,240.35,20.0]
[1733410291785,137.8,240.48,240.42,20.0]
[1733410291984,19.92612062,240.44,240.42,20.0]
[1733410292198,19.92612062,240.48,240.42,20.0]
[1733410292396,19.92612062,240.44,240.36,20.0]
[1733410292610,19.92612062,240.46,240.38,20.0]
[1733410292784,19.92612062,240.46,240.4,20.0]
[1733410293404,19.92612062,240.44,240.43,20.12549]
[1733410293591,19.92612062,240.46,240.44,20.0]
[1733410293803,19.92612062,240.6,240.44,20.0]
[1733410293804,19.92612062,240.48,240.44,20.0]
[1733410293999,32.38742014,240.45,240.44,20.0]
[1733410294200,32.38742014,240.49,240.44,20.0]
[1733410294518,32.38742014,240.47,240.44,20.0]
[1733410294716,32.38742014,240.45,240.38,0.12549]
[1733410294918,32.38742014,240.4,240.33,23.776884]
[1733410295132,38.10002266,240.44,240.37,0.12549]
[1733410295417,137.8,240.47,240.4,32.38742014]
[1733410295594,32.38742014,240.44,240.4,0.12549]
[1733410295794,32.38742014,240.44,240.37,23.776884]
[1733410296001,32.38742014,240.44,240.36,32.38742014]
[1733410296183,32.38742014,240.48,240.41,20.0]
[1733410296384,32.38742014,240.48,240.43,20.0]
[1733410296583,32.38742014,240.5,240.43,20.0]
[1733410296809,32.38742014,240.48,240.45,20.0]
[1733410297009,32.38742014,240.48,240.38,32.38742014]
[1733410297010,137.8,240.47,240.41,20.0]
[1733410297602,32.38742014,240.46,240.41,20.0]
[1733410297898,143.28347752,240.45,240.37,20.0]
[1733410298097,32.38742014,240.42,240.37,20.0]
[1733410298413,32.38742014,240.4,240.35,20.0]
[1733410298619,32.38742014,240.38,240.35,20.0]
[1733410298919,32.38742014,240.36,240.26,32.38742014]
[1733410299091,32.38742014,240.39,240.31,32.38742014]
[1733410299496,137.8,240.46,240.23,16.6559]
[1733410299497,32.38742014,240.35,240.27,32.38742014]
[1733410299706,32.38742014,240.37,240.29,32.38742014]
[1733410300217,32.38742014,240.39,240.31,32.38742014]
[1733410300427,32.38742014,240.37,240.29,32.38742014]
[1733410300608,32.38742014,240.34,240.27,32.38742014]
[1733410300924,32.38742014,240.34,240.3,20.0]
[1733410301395,32.38742014,240.34,240.25,32.38742014]
[1733410301817,32.38742014,240.32,240.25,32.38742014]
[1733410302018,32.38742014,240.32,240.23,32.38742014]
[1733410302223,32.38742014,240.32,240.24,23.776884]
[1733410302724,32.38742014,240.32,240.27,20.0]
[1733410303021,32.38742014,240.3,240.26,20.0]
[1733410303397,32.38742014,240.3,240.23,32.38742014]
[1733410304130,32.38742014,240.3,240.24,23.776884]
[1733410304422,32.38742014,240.32,240.25,0.12549]
[1733410304628,38.18020241,240.32,240.27,20.0]
[1733410304789,137.8,240.31,240.27,20.0]
[1733410304989,32.38742014,240.32,240.28,20.0]
[1733410305402,32.38742014,240.3,240.21,32.38742014]
[1733410305601,32.38742014,240.3,240.26,20.0]
[1733410305917,32.38742014,240.28,240.19,32.38742014]
[1733410306119,32.38742014,240.26,240.19,32.38742014]
[1733410306734,32.38742014,240.3,240.21,32.38742014]
[1733410306904,32.38742014,240.28,240.21,32.38742014]
[1733410307404,32.38742014,240.28,240.19,32.38742014]
[1733410307609,32.38742014,240.28,240.21,32.38742014]
[1733410307831,137.8,240.27,240.24,20.0]
[1733410308340,32.38742014,240.3,240.23,32.38742014]
[1733410308511,137.8,240.31,240.23,32.38742014]
[1733410308512,137.8,240.31,240.26,20.0]
[1733410308906,137.8,240.31,240.28,20.0]
[1733410309113,32.38742014,240.36,240.3,43.902374]
[1733410309320,32.38742014,240.38,240.33,20.0]
[1733410309658,32.38742014,240.38,240.31,32.38742014]
[1733410309659,32.38742014,240.44,240.39,0.12549]
[1733410309836,32.38742014,240.46,240.42,20.0]
[1733410310139,32.38742014,240.52,240.48,20.0]
[1733410310439,7.7608,240.63,240.49,0.12549]
[1733410310440,32.38742014,240.54,240.49,0.12549]
[1733410310739,32.38742014,240.5,240.48,20.0]
[1733410310901,32.38742014,240.54,240.48,20.0]
[1733410311104,32.38742014,240.54,240.49,0.12549]
[1733410311318,32.38742014,240.54,240.47,32.38742014]
[1733410311319,32.38742014,240.54,240.48,23.902374]
[1733410311533,32.38742014,240.56,240.48,23.902374]
[1733410311722,32.38742014,240.52,240.5,20.0]
[1733410311903,32.38742014,240.56,240.5,20.0]
[1733410312101,32.38742014,240.56,240.54,20.0]
[1733410312334,137.8,240.59,240.54,20.0]
[1733410313137,32.38742014,240.63,240.58,20.0]
[1733410313321,32.38742014,240.63,240.59,0.12549]
[1733410313850,32.38742014,240.63,240.58,20.0]
[1733410314045,170.18742014,240.63,240.58,20.0]
[1733410314247,32.38742014,240.63,240.58,20.0]
[1733410314420,32.38742014,240.65,240.58,20.0]
[1733410314620,32.38742014,240.63,240.58,20.0]
[1733410314833,137.8,240.62,240.58,20.0]
[1733410315455,32.38742014,240.67,240.6,20.0]
[1733410315628,1.635,240.72,240.55,23.776884]
[1733410315629,137.8,240.66,240.62,20.0]
[1733410315828,32.38742014,240.73,240.66,20.0]
[1733410316133,32.38742014,240.79,240.74,20.0]
[1733410316443,137.8,240.82,240.8,20.0]
[1733410316643,170.18742014,240.87,240.82,20.0]
[1733410316837,32.38742014,240.85,240.75,32.38742014]
[1733410317037,32.38742014,240.78,240.74,20.12549]
[1733410317348,32.38742014,240.76,240.74,20.0]
[1733410317547,32.38742014,240.76,240.7,20.0]
[1733410317718,32.38742014,240.84,240.7,20.0]
[1733410317719,32.38742014,240.74,240.7,20.0]
[1733410317924,32.38742014,240.72,240.61,23.902374]
[1733410318128,32.38742014,240.69,240.61,23.902374]
[1733410318338,143.81989926,240.71,240.64,32.38742014]
[1733410318546,6.01989926,240.69,240.62,32.51291014]
[1733410318860,137.8,240.71,240.63,23.902374]
[1733410319021,137.8,240.71,240.64,32.38742014]
[1733410319219,32.38742014,240.74,240.69,20.0]
[1733410319419,170.18742014,240.76,240.69,20.0]
[1733410319656,170.18742014,240.76,240.7,0.12549]
[1733410319852,32.38742014,240.72,240.69,20.0]
[1733410320029,32.38742014,240.72,240.68,0.12549]
[1733410320230,170.18742014,240.74,240.69,20.0]
[1733410320563,32.38742014,240.76,240.69,20.0]
[1733410320721,32.38742014,240.72,240.69,20.0]
[1733410321045,38.00567111,240.76,240.7,20.0]
[1733410321228,32.38742014,240.74,240.7,20.0]
[1733410321430,32.38742014,240.72,240.7,20.0]
[1733410321624,137.8,240.71,240.7,20.0]
[1733410321856,32.38742014,240.72,240.67,20.0]
[1733410322054,38.26694491,240.72,240.67,20.0]
[1733410322351,32.38742014,240.72,240.67,20.0]
[1733410322555,38.26694491,240.72,240.67,20.0]
[1733410322727,137.8,240.75,240.69,20.0]
[1733410323128,137.8,240.75,240.68,32.51291014]
[1733410323426,170.18742014,240.74,240.69,20.0]
[1733410323756,32.38742014,240.76,240.69,20.0]
[1733410323963,32.38742014,240.72,240.68,0.12549]
[1733410324256,32.38742014,240.7,240.65,20.0]
[1733410324452,137.8,240.71,240.66,23.902374]
[1733410324759,32.38742014,240.72,240.69,20.0]
[1733410325157,32.38742014,240.72,240.66,20.12549]
[1733410325462,32.38742014,240.67,240.61,20.0]
[1733410325754,6.07277259,240.66,240.6,32.38742014]
[1733410325939,32.38742014,240.7,240.62,32.38742014]
[1733410326254,137.8,240.71,240.64,32.38742014]
[1733410326458,32.38742014,240.72,240.64,32.38742014]
[1733410326660,170.18742014,240.74,240.66,32.38742014]
[1733410326854,170.18742014,240.74,240.69,20.0]
[1733410327171,32.38742014,240.7,240.65,20.0]
[1733410327370,32.38742014,240.7,240.62,32.38742014]
[1733410327665,32.38742014,240.66,240.58,32.38742014]
[1733410328159,170.18742014,240.73,240.63,32.38742014]
[1733410328363,32.38742014,240.73,240.63,32.38742014]
[1733410328858,32.38742014,240.73,240.67,20.0]
[1733410329063,32.38742014,240.77,240.7,0.12549]
[1733410329269,32.38742014,240.79,240.74,20.0]
[1733410330076,32.38742014,240.77,240.71,20.0]
[1733410330243,32.38742014,240.75,240.65,32.38742014]
[1733410330450,32.38742014,240.73,240.65,32.38742014]
[1733410330634,32.38742014,240.71,240.62,32.38742014]
[1733410330841,32.38742014,240.71,240.63,0.12549]
[1733410331068,32.38742014,240.71,240.62,32.38742014]
[1733410331246,38.21532972,240.71,240.62,32.38742014]
[1733410331450,170.18742014,240.71,240.64,32.38742014]
[1733410331661,32.38742014,240.69,240.62,32.38742014]
[1733410331867,137.8,240.73,240.65,32.38742014]
[1733410332049,143.79120526,240.73,240.67,32.38742014]
[1733410332247,32.38742014,240.84,240.67,32.38742014]
[1733410332248,32.38742014,240.76,240.67,32.38742014]
[1733410332456,32.38742014,240.74,240.65,32.38742014]
[1733410333070,32.38742014,240.74,240.7,20.0]
[1733410333253,32.38742014,240.72,240.7,20.0]
[1733410333765,32.38742014,240.72,240.63,32.38742014]
[1733410333951,137.8,240.71,240.64,0.12549]
[1733410334151,32.38742014,240.72,240.64,0.12549]
[1733410334473,32.38742014,240.68,240.62,0.12549]
[1733410334669,32.38742014,240.7,240.62,0.12549]
[1733410334968,137.8,240.69,240.64,0.12549]
[1733410335140,137.8,240.69,240.66,20.0]
[1733410335340,137.8,240.69,240.61,32.38742014]
[1733410335540,5.72160503,240.69,240.62,0.12549]
[1733410335738,32.38742014,240.68,240.61,32.38742014]
[1733410335956,5.72160503,240.69,240.62,0.12549]
[1733410336146,137.8,240.69,240.65,32.38742014]
[1733410336548,137.8,240.69,240.63,20.0]
[1733410336770,137.8,240.69,240.63,52.38742014]
[1733410336979,137.8,240.69,240.65,32.38742014]
[1733410337182,137.8,240.69,240.63,52.38742014]
[1733410337482,32.38742014,240.67,240.59,32.38742014]
[1733410338657,6.08249947,240.66,240.59,32.38742014]
[1733410338854,6.08249947,240.66,240.62,20.0]